bitfinex/quotes_BTCUSD_20250803
["timestamp","ask_amount","ask_price","bid_price","bid_amount"]
[1754185713380,0.82848138,113290.0,113280.0,0.03422433]
[1754185714950,0.46192738,113290.0,113280.0,0.03422433]
[1754185715152,0.46192738,113290.0,113280.0,0.04368371]
[1754185715361,0.48847738,113290.0,113280.0,0.04368371]
[1754185716225,0.47465768,113290.0,113280.0,0.04368371]
[1754185717956,0.47663768,113290.0,113280.0,0.04368371]
[1754185718171,0.47663768,113290.0,113280.0,0.03422433]
[1754185718928,0.49045761,113290.0,113280.0,0.03422433]
[1754185721474,0.49045761,113290.0,113280.0,0.001]
[1754185721902,0.49045761,113290.0,113280.0,0.02797]
[1754185722636,0.49045761,113290.0,113280.0,0.0312]
[1754185722852,0.48819761,113290.0,113280.0,0.04244695]
[1754185724446,0.48819761,113290.0,113280.0,0.03329]
[1754185725283,0.17560993,113290.0,113280.0,0.03329]
[1754185725493,0.48819761,113290.0,113280.0,0.03329]
[1754185725720,0.49017761,113290.0,113280.0,0.03329]
[1754185728050,0.47635768,113290.0,113280.0,0.03329]
[1754185728262,0.47635768,113290.0,113280.0,0.0312]
[1754185728461,0.47635768,113290.0,113280.0,0.02797]
[1754185731107,0.49017785,113290.0,113280.0,0.02797]
[1754185732147,0.49017785,113290.0,113280.0,0.0312]
[1754185735079,0.49017785,113290.0,113280.0,0.03329]
[1754185736252,0.49017785,113290.0,113280.0,0.02797]
[1754185737987,0.83017785,113290.0,113280.0,0.02797]
[1754185739220,0.83017785,113290.0,113280.0,0.001]
[1754185739746,0.83017785,113290.0,113280.0,0.02825]
[1754185740773,1.23127432,113290.0,113280.0,0.001]
[1754185740984,1.21745415,113290.0,113280.0,0.001]
[1754185741609,0.90486647,113290.0,113280.0,0.001]
[1754185741833,0.90486647,113290.0,113270.0,0.06036951]
[1754185741834,0.34,113280.0,113270.0,0.06036951]
[1754185742036,1.10226536,113280.0,113270.0,0.06036951]
[1754185742959,1.10732536,113280.0,113270.0,0.06036951]
[1754185743236,0.78967768,113280.0,113270.0,0.08761951]
[1754185743859,0.80349943,113280.0,113270.0,0.08861951]
[1754185743996,0.83420168,113280.0,113270.0,0.08861951]
[1754185744412,0.82037993,113280.0,113270.0,0.08861951]
[1754185745687,1.13296761,113280.0,113270.0,0.08861951]
[1754185746123,1.13296761,113280.0,113270.0,0.06136951]
[1754185746656,1.15952261,113280.0,113270.0,0.06136951]
[1754185746858,1.25342017,113280.0,113270.0,0.06136951]
[1754185747066,1.1896428,113280.0,113270.0,0.06136951]
[1754185747263,1.20346523,113280.0,113270.0,0.06136951]
[1754185748225,1.22002746,113280.0,113270.0,0.06136951]
[1754185748423,1.20346523,113280.0,113270.0,0.06136951]
[1754185749458,4.89195623,113280.0,113270.0,0.06136951]
[1754185750638,4.90850782,113280.0,113270.0,0.06136951]
[1754185751132,4.89195623,113280.0,113270.0,0.06136951]
[1754185752367,4.86689604,113280.0,113270.0,0.06136951]
[1754185753256,4.86689604,113280.0,113270.0,0.09176951]
[1754185753257,0.57322987,113280.0,113270.0,0.09176951]
[1754185753507,0.85878736,113280.0,113270.0,0.10310646]
[1754185754205,0.85878736,113280.0,113270.0,0.10210646]
[1754185754907,0.85978736,113280.0,113270.0,0.09288951]
[1754185756639,0.86276736,113280.0,113270.0,0.09288951]
[1754185757624,0.86276736,113280.0,113270.0,0.09076951]
[1754185757859,0.86276736,113280.0,113270.0,0.08761951]
[1754185757860,1.17535504,113280.0,113270.0,0.08761951]
[1754185758537,1.04023504,113280.0,113270.0,0.08761951]
[1754185758838,1.16153261,113280.0,113270.0,0.08761951]
[1754185759383,1.16153261,113280.0,113270.0,0.06036951]
[1754185759626,1.16535261,113280.0,113270.0,0.06036951]
[1754185759855,1.16153261,113280.0,113270.0,0.06036951]
[1754185760318,0.82153261,113280.0,113270.0,0.06036951]
[1754185760558,0.8465928,113280.0,113270.0,0.06036951]
[1754185761008,5.8465928,113280.0,113270.0,0.06036951]
[1754185761228,5.93557808,113280.0,113270.0,0.06036951]
[1754185761496,5.88078431,113280.0,113270.0,0.06036951]
[1754185762607,6.22078431,113280.0,113270.0,0.06036951]
[1754185763224,6.22905969,113280.0,113270.0,0.06036951]
[1754185763440,6.22905969,113280.0,113270.0,0.05636951]
[1754185763641,6.22906114,113280.0,113270.0,0.05636951]
[1754185764747,1.21523831,113280.0,113270.0,0.05636951]
[1754185764946,6.21523831,113280.0,113270.0,0.05636951]
[1754185765090,1.21523831,113280.0,113270.0,0.05636951]
[1754185765320,6.21523831,113280.0,113270.0,0.05636951]
[1754185765529,6.39179198,113280.0,113270.0,0.05636951]
[1754185766144,6.39303198,113280.0,113270.0,0.05636951]
[1754185767141,6.36797179,113280.0,113270.0,0.05636951]
[1754185767679,6.38179549,113280.0,113270.0,0.05636951]
[1754185769102,6.06506182,113280.0,113270.0,0.08523951]
[1754185769303,6.06506182,113280.0,113270.0,0.09036951]
[1754185769304,6.19824182,113280.0,113270.0,0.09036951]
[1754185769517,6.19824976,113280.0,113270.0,0.09036951]
[1754185769736,6.20022976,113280.0,113270.0,0.09036951]
[1754185770836,6.28906732,113280.0,113270.0,0.09036951]
[1754185771058,6.28906732,113280.0,113270.0,0.05636951]
[1754185772379,6.28906732,113280.0,113270.0,0.08523951]
[1754185773269,1.28906732,113280.0,113270.0,0.08523951]
[1754185773481,6.20022976,113280.0,113270.0,0.08523951]
[1754185774125,6.37678343,113280.0,113270.0,0.05636951]
[1754185774349,6.38285343,113280.0,113270.0,0.05636951]
[1754185774978,6.40194448,113280.0,113270.0,0.05636951]
[1754185775216,6.38814409,113280.0,113270.0,0.05636951]
[1754185775470,6.47698165,113280.0,113270.0,0.05636951]
[1754185775685,6.51972594,113280.0,113270.0,0.05636951]
[1754185775896,6.49443067,113280.0,113270.0,0.05636951]
[1754185776328,6.49443067,113280.0,113270.0,0.05236951]
[1754185778090,6.50825413,113280.0,113270.0,0.05236951]
[1754185778752,5.88307877,113280.0,113270.0,0.05236951]
[1754185778963,6.50825413,113280.0,113270.0,0.05236951]
[1754185780080,6.85573048,113280.0,113270.0,0.05236951]
[1754185780303,6.82934181,113280.0,113270.0,0.05236951]
[1754185781227,6.51675413,113280.0,113270.0,0.05236951]
[1754185783712,6.50825413,113280.0,113270.0,0.04836951]
[1754185784586,1.82084181,113280.0,113270.0,0.04836951]
[1754185784763,6.50825413,113280.0,113270.0,0.04836951]
[1754185788533,6.50701413,113280.0,113270.0,0.04836951]
[1754185788756,6.50169067,113280.0,113270.0,0.04836951]
[1754185789598,1.50169067,113280.0,113270.0,0.04836951]
[1754185789822,6.50169067,113280.0,113270.0,0.04836951]
[1754185790700,6.50169067,113280.0,113270.0,0.04436951]
[1754185791132,6.81427835,113280.0,113270.0,0.04436951]
[1754185791560,6.82810326,113280.0,113270.0,0.04436951]
[1754185791991,6.82934326,113280.0,113270.0,0.04436951]
[1754185792235,6.88073193,113280.0,113270.0,0.04436951]
[1754185792483,6.87452598,113280.0,113270.0,0.0355171]
[1754185792704,6.87451648,113280.0,113270.0,0.02666469]
[1754185792927,6.87351648,113280.0,113270.0,0.02666469]
[1754185793148,6.87251648,113280.0,113270.0,0.01781228]
[1754185793379,6.87651648,113280.0,113270.0,0.01781228]
[1754185793596,6.87651648,113280.0,113270.0,0.00895987]
[1754185793811,6.90151648,113280.0,113270.0,0.00895987]
[1754185793983,6.90151648,113280.0,113270.0,0.00010746]
[1754185794214,6.88769157,113280.0,113270.0,0.00010746]
[1754185794422,0.17656925,113270.0,113260.0,0.0004]
[1754185794667,6.35345549,113270.0,113260.0,0.0004]
[1754185795654,6.35345549,113270.0,113260.0,0.00087758]
[1754185796074,1.35345549,113270.0,113260.0,0.00087758]
[1754185796275,6.38002049,113270.0,113260.0,0.00087758]
[1754185796487,6.38502049,113270.0,113260.0,0.00087758]
[1754185797044,6.38502049,113270.0,113260.0,0.02974758]
[1754185797717,6.38502049,113270.0,113260.0,0.02574758]
[1754185798375,6.38962281,113270.0,113260.0,0.02574758]
[1754185800990,6.38962281,113270.0,113260.0,0.02894758]
[1754185801446,6.25414281,113270.0,113260.0,0.02894758]
[1754185801654,6.38966281,113270.0,113260.0,0.02894758]
[1754185802569,6.38966281,113270.0,113260.0,0.02009433]
[1754185804976,1.25414281,113270.0,113260.0,0.01609433]
[1754185805193,6.38978281,113270.0,113260.0,0.01824433]
[1754185805652,5.38808104,113270.0,113260.0,0.01824433]
[1754185805881,5.52372104,113270.0,113260.0,0.01824433]
[1754185806129,5.86372214,113270.0,113260.0,0.01824433]
[1754185806352,5.86170971,113270.0,113260.0,0.01824433]
[1754185806792,5.72706971,113270.0,113260.0,0.01824433]
[1754185807008,5.86274971,113270.0,113260.0,0.01824433]
[1754185807221,5.85974971,113270.0,113260.0,0.01824433]
[1754185807476,5.95058727,113270.0,113260.0,0.01824433]
[1754185807709,5.81490727,113270.0,113260.0,0.01824433]
[1754185807918,5.95058727,113270.0,113260.0,0.01824433]
[1754185808592,5.93150865,113270.0,113260.0,0.01824433]
[1754185808786,5.9453337,113270.0,113260.0,0.01824433]
[1754185809000,5.92877549,113270.0,113260.0,0.01824433]
[1754185809211,5.94533947,113270.0,113260.0,0.01824433]
[1754185809876,5.40823423,113270.0,113260.0,0.01824433]
[1754185810080,5.53559403,113270.0,113260.0,0.01824433]
[1754185810303,5.49161773,113270.0,113260.0,0.01824433]
[1754185810529,5.83161773,113270.0,113260.0,0.01824433]
[1754185810966,0.82961773,113270.0,113260.0,0.01824433]
[1754185811415,0.82861773,113270.0,113260.0,0.01824433]
[1754185811657,0.51615005,113270.0,113260.0,0.01824433]
[1754185811869,0.82873773,113270.0,113260.0,0.01924433]
[1754185812953,0.82873773,113270.0,113260.0,0.02024433]
[1754185813174,0.51615005,113270.0,113260.0,0.02024433]
[1754185813393,0.82873773,113270.0,113260.0,0.02024433]
[1754185813857,0.82869773,113270.0,113260.0,0.02024433]
[1754185815195,0.44830768,113270.0,113260.0,0.02024433]
[1754185815421,0.48237561,113270.0,113260.0,0.02024433]
[1754185815842,0.46855168,113270.0,113260.0,0.02024433]
[1754185816331,5.46855168,113270.0,113260.0,0.02024433]
[1754185817273,5.80855168,113270.0,113260.0,0.02024433]
[1754185818423,5.68665586,113270.0,113260.0,0.02024433]
[1754185818622,5.82229586,113270.0,113260.0,0.02024433]
[1754185819079,5.85066453,113270.0,113260.0,0.01489433]
[1754185819913,5.82427586,113270.0,113260.0,0.01489433]
[1754185820159,5.68665586,113270.0,113260.0,0.02024433]
[1754185820360,5.82237586,113270.0,113260.0,0.02024433]
[1754185823731,0.82237586,113270.0,113260.0,0.02024433]
[1754185824139,5.82237586,113270.0,113260.0,0.02024433]
[1754185825321,5.48237586,113270.0,113260.0,0.02024433]
[1754185825460,5.34665586,113270.0,113260.0,0.02024433]
[1754185825660,5.48249586,113270.0,113260.0,0.02024433]
[1754185827981,5.48241586,113270.0,113260.0,0.02024433]
[1754185830760,5.46859168,113270.0,113260.0,0.02024433]
[1754185832160,5.33283168,113270.0,113260.0,0.02024433]
[1754185832401,5.46855168,113270.0,113260.0,0.02024433]
[1754185833579,5.48237552,113270.0,113260.0,0.02024433]
[1754185834975,5.155964,113270.0,113260.0,0.02024433]
[1754185835205,5.46855168,113270.0,113260.0,0.02024433]
[1754185837296,5.47053168,113270.0,113260.0,0.02024433]
[1754185837514,5.47053168,113270.0,113260.0,0.01809433]
[1754185837721,5.48435558,113270.0,113260.0,0.01809433]
[1754185838381,5.50093756,113270.0,113260.0,0.01809433]
[1754185840929,0.50094202,113270.0,113260.0,0.01809433]
[1754185841131,5.50094202,113270.0,113260.0,0.01809433]
[1754185843112,5.54858069,113270.0,113260.0,0.002]
[1754185843803,5.52219202,113270.0,113260.0,0.002]
[1754185844237,5.53048701,113270.0,113260.0,0.002]
[1754185845617,5.21789933,113270.0,113260.0,0.002]
[1754185845830,5.53048701,113270.0,113260.0,0.002]
[1754185846462,5.50923701,113270.0,113260.0,0.03132]
[1754185847534,5.49541311,113270.0,113260.0,0.03132]
[1754185850213,5.50923744,113270.0,113260.0,0.03132]
[1754185852109,5.598075,113270.0,113260.0,0.002]
[1754185852367,5.619325,113270.0,113260.0,0.002]
[1754185852661,5.598075,113270.0,113260.0,0.002]
[1754185852882,5.598075,113270.0,113260.0,0.03132]
[1754185853933,5.50923744,113270.0,113260.0,0.03132]
[1754185854833,5.9002786,113270.0,113260.0,0.002]
[1754185855040,6.33190156,113270.0,113260.0,0.002]
[1754185855245,6.28550959,113270.0,113260.0,0.002]
[1754185855647,5.0,113260.0,113250.0,0.0004]
[1754185855882,5.87892528,113260.0,113250.0,0.0004]
[1754185856244,6.33432584,113260.0,113250.0,0.0004]
[1754185856860,5.94347412,113260.0,113250.0,0.0004]
[1754185857076,5.84163966,113260.0,113250.0,0.03504]
[1754185857277,5.36421966,113260.0,113250.0,0.03504]
[1754185857517,0.33934012,113260.0,113250.0,0.03504]
[1754185857712,0.47482012,113260.0,113250.0,0.03504]
[1754185858078,0.48864534,113260.0,113250.0,0.03504]
[1754185858402,0.48864534,113260.0,113250.0,0.03604]
[1754185859072,0.48864534,113260.0,113250.0,0.03704]
[1754185859293,5.40207755,113260.0,113250.0,0.03704]
[1754185859515,5.55605557,113260.0,113250.0,0.03172]
[1754185859732,5.42061557,113260.0,113250.0,0.03172]
[1754185859973,5.55625557,113260.0,113250.0,0.03172]
[1754185861005,5.84734336,113260.0,113250.0,0.03489]
[1754185861448,5.71170336,113260.0,113250.0,0.03699]
[1754185861660,5.82880534,113260.0,113250.0,0.03699]
[1754185861865,5.69316534,113260.0,113250.0,0.03699]
[1754185862063,5.82888534,113260.0,113250.0,0.03699]
[1754185862587,5.51610822,113260.0,113250.0,0.03699]
[1754185862802,0.84546024,113260.0,113250.0,0.03699]
[1754185863020,5.84546029,113260.0,113250.0,0.03699]
[1754185863444,5.44849712,113260.0,113250.0,0.03699]
[1754185863654,5.47505712,113260.0,113250.0,0.03699]
[1754185865095,5.48334365,113260.0,113250.0,0.03699]
[1754185865732,5.48334322,113260.0,113250.0,0.03699]
[1754185866562,5.49716871,113260.0,113250.0,0.03699]
[1754185867038,5.51570069,113260.0,113250.0,0.03699]
[1754185867241,5.51570069,113260.0,113250.0,0.03172]
[1754185868589,5.96394404,113260.0,113250.0,0.0024]
[1754185869049,5.62477779,113260.0,113250.0,0.0024]
[1754185869239,5.93879491,113260.0,113250.0,0.0024]
[1754185869467,5.96518358,113260.0,113250.0,0.0024]
[1754185869734,5.31324067,113260.0,113250.0,0.0024]
[1754185869995,5.62601779,113260.0,113250.0,0.0014]
[1754185870216,0.62601779,113260.0,113250.0,0.0014]
[1754185870416,5.53718023,113260.0,113250.0,0.0004]
[1754185871270,0.53718023,113260.0,113250.0,0.0004]
[1754185871487,5.87634602,113260.0,113250.0,0.0004]
[1754185872118,5.53594023,113260.0,113250.0,0.0004]
[1754185874546,5.52211474,113260.0,113250.0,0.0004]
[1754185874767,5.52211349,113260.0,113250.0,0.0004]
[1754185874982,5.95135684,113260.0,113250.0,0.0004]
[1754185875653,5.60217691,113260.0,113250.0,0.0004]
[1754185875861,5.53990235,113260.0,113250.0,0.0004]
[1754185876292,5.51351368,113260.0,113250.0,0.0004]
[1754185876773,5.48334451,113260.0,113250.0,0.02826]
[1754185877498,5.4971703,113260.0,113250.0,0.02826]
[1754185877691,5.4971703,113260.0,113250.0,0.03143]
[1754185882200,0.4971703,113260.0,113250.0,0.0004]
[1754185882689,5.4971703,113260.0,113250.0,0.0004]
[1754185883268,5.80995349,113260.0,113250.0,0.0004]
[1754185883808,5.4945916,113260.0,113250.0,0.0004]
[1754185884032,5.4945916,113260.0,113250.0,0.00357]
[1754185884232,5.4945916,113260.0,113250.0,0.03143]
[1754185884385,5.48076581,113260.0,113250.0,0.03143]
[1754185887579,0.48076581,113260.0,113250.0,0.03143]
[1754185887805,5.48076581,113260.0,113250.0,0.03143]
[1754185888852,5.49459139,113260.0,113250.0,0.03143]
[1754185890770,5.88556879,113260.0,113250.0,0.03143]
[1754185893532,5.88524879,113260.0,113250.0,0.03343]
[1754185894392,5.87138321,113260.0,113250.0,0.03343]
[1754185894837,5.4803645,113260.0,113250.0,0.03443]
[1754185895030,5.4804045,113260.0,113250.0,0.03443]
[1754185895339,5.4804045,113260.0,113250.0,0.03543]
[1754185895583,5.43384206,113260.0,113250.0,0.03543]
[1754185895814,5.56924206,113260.0,113250.0,0.03543]
[1754185896044,5.43384206,113260.0,113250.0,0.03543]
[1754185896284,5.56920206,113260.0,113250.0,0.03543]
[1754185896505,5.4803645,113260.0,113250.0,0.03543]
[1754185898731,5.49419009,113260.0,113250.0,0.03543]
[1754185900777,6.17485652,113260.0,113250.0,0.0024]
[1754185900996,6.20124519,113260.0,113250.0,0.0024]
[1754185901420,6.30919664,113260.0,113250.0,0.0024]
[1754185902065,6.28390137,113260.0,113250.0,0.0024]
[1754185902253,6.30135039,113260.0,113250.0,0.0024]
[1754185902708,1.30135039,113260.0,113250.0,0.0014]
[1754185902934,6.30135039,113260.0,113250.0,0.0014]
[1754185903280,6.30135039,113260.0,113250.0,0.0004]
[1754185903483,6.47793523,113260.0,113250.0,0.0004]
[1754185904505,6.2875248,113260.0,113250.0,0.0004]
[1754185904709,6.17229857,113260.0,113250.0,0.0004]
[1754185904906,1.16966857,113260.0,113250.0,0.0004]
[1754185905449,6.16966857,113260.0,113250.0,0.0004]
[1754185905793,5.83944374,113260.0,113250.0,0.03349]
[1754185906447,5.82032985,113260.0,113250.0,0.03349]
[1754185907722,5.61433931,113260.0,113250.0,0.03349]
[1754185907933,5.64090331,113260.0,113250.0,0.03349]
[1754185908613,5.65472896,113260.0,113250.0,0.03349]
[1754185909473,5.67131345,113260.0,113250.0,0.03349]
[1754185910218,0.67131345,113260.0,113250.0,0.03349]
[1754185910375,5.67131345,113260.0,113250.0,0.03349]
[1754185912013,5.85332576,113260.0,113250.0,0.03349]
[1754185912436,5.85332576,113260.0,113250.0,0.03449]
[1754185913747,5.71800576,113260.0,113250.0,0.03549]
[1754185913874,5.85332576,113260.0,113250.0,0.03549]
[1754185914241,5.83949733,113260.0,113250.0,0.03549]
[1754185915312,5.8394972,113260.0,113250.0,0.03549]
[1754185917272,5.85332259,113260.0,113250.0,0.03549]
[1754185917503,5.94216015,113260.0,113250.0,0.03549]
[1754185917687,5.94216015,113260.0,113250.0,0.03349]
[1754185922569,0.94216015,113260.0,113250.0,0.03349]
[1754185922782,5.94216015,113260.0,113250.0,0.03349]
[1754185923457,5.94215944,113260.0,113250.0,0.03349]
[1754185924428,5.85332188,113260.0,113250.0,0.0024]
[1754185924591,5.85332188,113260.0,113250.0,0.03151]
[1754185924990,5.85332188,113260.0,113250.0,0.03469]
[1754185930557,5.85332188,113260.0,113250.0,0.04038]
[1754185930988,0.85332188,113260.0,113250.0,0.04038]
[1754185931191,5.85332188,113260.0,113250.0,0.04038]
[1754185932903,6.24429433,113260.0,113250.0,0.04038]
[1754185935124,6.33313189,113260.0,113250.0,0.04038]
[1754185936640,6.35952056,113260.0,113250.0,0.00809]
[1754185937551,1.34569517,113260.0,113250.0,0.00709]
[1754185937989,6.3226765,113260.0,113250.0,0.00609]
[1754185938413,6.3193065,113260.0,113250.0,0.00609]
[1754185938636,6.49589134,113260.0,113250.0,0.00609]
[1754185938877,6.54139088,113260.0,113250.0,0.00609]
[1754185939745,6.36480604,113260.0,113250.0,0.00609]
[1754185940255,6.37863213,113260.0,113250.0,0.00609]
[1754185940494,6.35952126,113260.0,113250.0,0.00609]
[1754185942642,6.24429503,113260.0,113250.0,0.00609]
[1754185942866,6.24429503,113260.0,113250.0,0.0352]
[1754185943298,5.54059055,113260.0,113250.0,0.0352]
[1754185943522,6.24429881,113260.0,113250.0,0.03838]
[1754185944341,5.52676446,113260.0,113250.0,0.03838]
[1754185944547,6.23047272,113260.0,113250.0,0.03838]
[1754185945435,6.31931028,113260.0,113250.0,0.03838]
[1754185946070,6.23047277,113260.0,113250.0,0.03838]
[1754185946292,6.23035777,113260.0,113250.0,0.04044]
[1754185947891,5.74322322,113260.0,113250.0,0.04044]
[1754185948113,5.87850322,113260.0,113250.0,0.04044]
[1754185948566,6.24418267,113260.0,113250.0,0.04044]
[1754185949008,5.85316936,113260.0,113250.0,0.04044]
[1754185950546,5.85316934,113260.0,113250.0,0.04044]
[1754185953276,5.85312934,113260.0,113250.0,0.04044]
[1754185953809,5.71788896,113260.0,113250.0,0.04044]
[1754185954022,5.85312896,113260.0,113250.0,0.04044]
[1754185954451,5.83930364,113260.0,113250.0,0.04044]
[1754185958579,5.85312927,113260.0,113250.0,0.04044]
[1754185960213,0.85312927,113260.0,113250.0,0.04044]
[1754185960382,5.85312927,113260.0,113250.0,0.04044]
[1754185963909,5.51320427,113260.0,113250.0,0.04044]
[1754185964403,5.49937864,113260.0,113250.0,0.04044]
[1754185964579,5.48279243,113260.0,113250.0,0.04044]
[1754185965039,5.48279243,113260.0,113250.0,0.04144]
[1754185965248,5.34755243,113260.0,113250.0,0.04144]
[1754185965439,0.661804,113260.0,113250.0,0.04144]
[1754185965631,0.47449933,113260.0,113250.0,0.04144]
[1754185966067,0.47449933,113260.0,113250.0,0.04244]
[1754185966418,0.44793533,113260.0,113250.0,0.04244]
[1754185967487,0.46175991,113260.0,113250.0,0.04244]
[1754185970611,0.14906458,113260.0,113250.0,0.04244]
[1754185970816,1.00078842,113260.0,113250.0,0.04244]
[1754185971022,0.01382458,113260.0,113250.0,0.04244]
[1754185971238,0.01382458,113260.0,113250.0,0.43362022]
[1754185972078,0.01382458,113260.0,113250.0,0.43262022]
[1754185972286,0.01382458,113260.0,113250.0,0.43362022]
[1754185972504,0.01382458,113260.0,113250.0,0.43662022]
[1754185972710,0.01382458,113260.0,113250.0,0.08489638]
[1754185972919,0.01382458,113260.0,113250.0,0.08710388]
[1754185974427,0.13567681,113270.0,113250.0,0.08710388]
[1754185974670,0.44820413,113270.0,113260.0,0.03118]
[1754185974875,0.44820413,113270.0,113260.0,0.04190939]
[1754185975301,0.13567681,113270.0,113260.0,0.04190939]
[1754185976355,0.13567681,113270.0,113260.0,0.04290939]
[1754185977286,0.01429973,113270.0,113260.0,0.04390939]
[1754185978712,0.01429973,113270.0,113260.0,0.0461167]
[1754185981681,0.01429973,113270.0,113260.0,0.13474954]
[1754185982973,0.01429973,113270.0,113260.0,0.13374954]
[1754185983350,0.01429973,113270.0,113260.0,0.13774954]
[1754185983691,0.01429973,113270.0,113260.0,0.14074954]
[1754185984292,0.00047681,113270.0,113260.0,0.14074954]
[1754185985283,0.01429797,113270.0,113260.0,0.14074954]
[1754185986605,0.01429797,113270.0,113260.0,0.45327686]
[1754185986820,0.01429797,113270.0,113260.0,0.13854223]
[1754185987047,0.01429797,113270.0,113260.0,0.14074954]
[1754185989146,0.01429797,113270.0,113260.0,0.42789856]
[1754185989353,0.01429797,113270.0,113260.0,0.44358299]
[1754185989782,0.01429797,113270.0,113260.0,0.75611031]
[1754185990024,0.00047681,113270.0,113260.0,0.80611031]
[1754185990253,0.00047681,113270.0,113260.0,0.87641031]
[1754185990722,0.01381927,113290.0,113280.0,0.32997634]
[1754185990907,0.01386692,113290.0,113280.0,0.59369681]
[1754185991113,0.01386692,113290.0,113280.0,0.62645681]
[1754185991354,0.01386692,113290.0,113280.0,0.31392949]
[1754185991586,0.01386692,113290.0,113280.0,0.65145681]
[1754185993084,0.01386692,113290.0,113280.0,0.65745681]
[1754185994379,4.765e-05,113290.0,113280.0,0.65745681]
[1754185995267,4.765e-05,113290.0,113280.0,0.34492949]
[1754185996514,4.765e-05,113290.0,113280.0,0.37147049]
[1754185998844,4.765e-05,113290.0,113280.0,0.68399781]
[1754185999778,4.765e-05,113290.0,113280.0,0.37147049]
[1754186001155,4.765e-05,113290.0,113280.0,0.64117049]
[1754186002031,4.765e-05,113290.0,113280.0,0.95369781]
[1754186002261,4.765e-05,113290.0,113280.0,0.44305286]
[1754186002472,4.765e-05,113290.0,113280.0,0.56068384]
[1754186003047,4.765e-05,113290.0,113280.0,0.53414284]
[1754186007439,0.01386577,113290.0,113280.0,0.53414284]
[1754186007888,0.07200198,113310.0,113280.0,0.53414284]
[1754186008112,0.0138185,113300.0,113280.0,0.6229804]
[1754186008358,0.0138185,113300.0,113290.0,0.02952]
[1754186009065,0.0138185,113300.0,113290.0,0.03470672]
[1754186009521,0.0138185,113300.0,113290.0,0.03675672]
[1754186009788,0.0138185,113300.0,113290.0,0.03875672]
[1754186010003,0.0138185,113300.0,113290.0,0.16138029]
[1754186012922,0.0138185,113300.0,113290.0,0.43108029]
[1754186013148,0.0138185,113300.0,113290.0,0.42887357]
[1754186013868,0.0138185,113300.0,113290.0,0.43087357]
[1754186014351,4.779e-05,113310.0,113290.0,0.43087357]
[1754186014592,4.779e-05,113310.0,113300.0,0.13724653]
[1754186014888,4.779e-05,113310.0,113300.0,0.20975291]
[1754186015117,0.00831553,113310.0,113300.0,0.20754638]
[1754186015591,0.00831553,113310.0,113300.0,0.16809]
[1754186015801,0.32084285,113310.0,113300.0,0.16604]
[1754186016000,0.32084285,113310.0,113300.0,0.16704]
[1754186017141,0.32084285,113310.0,113300.0,0.16804]
[1754186017373,0.33466029,113310.0,113300.0,0.16804]
[1754186018058,0.02213297,113310.0,113300.0,0.16804]
[1754186018756,0.33466029,113310.0,113300.0,0.002]
[1754186018977,0.40721227,113310.0,113300.0,0.13704]
[1754186019456,0.40721227,113310.0,113300.0,0.002]
[1754186019686,0.40721227,113310.0,113300.0,0.137]
[1754186021156,0.40537227,113310.0,113300.0,0.137]
[1754186021332,0.40537227,113310.0,113300.0,0.19128746]
[1754186024283,0.39155483,113310.0,113300.0,0.19128746]
[1754186024491,0.39291483,113310.0,113300.0,0.137]
[1754186025244,0.39155483,113310.0,113300.0,0.135]
[1754186025659,0.39255483,113310.0,113290.0,0.18254171]
[1754186025897,0.31252732,113300.0,113290.0,0.18254171]
[1754186026100,0.31252732,113300.0,113290.0,0.135]
[1754186026310,0.31388732,113300.0,113290.0,0.135]
[1754186026513,0.31252732,113300.0,113290.0,0.135]
[1754186027445,0.31388732,113300.0,113280.0,0.031]
[1754186027593,0.31252732,113290.0,113280.0,0.166]
[1754186028260,0.31252732,113290.0,113280.0,0.2113149]
[1754186028626,0.32634584,113290.0,113280.0,0.2133649]
[1754186028849,0.32634584,113290.0,113280.0,0.2153649]
[1754186029831,0.32634584,113290.0,113280.0,0.2173649]
[1754186032690,0.32634584,113290.0,113280.0,0.17]
[1754186032903,0.32634584,113290.0,113280.0,0.139]
[1754186033324,0.32634584,113290.0,113280.0,0.16702]
[1754186033740,0.32634584,113290.0,113280.0,0.16502]
[1754186034159,0.32634584,113290.0,113280.0,0.16302]
[1754186034370,0.31252732,113290.0,113280.0,0.166]
[1754186034789,0.31252732,113290.0,113280.0,0.1836]
[1754186035633,0.31252732,113290.0,113280.0,0.1846]
[1754186037034,0.69712662,113290.0,113280.0,0.002]
[1754186037239,5.72351529,113290.0,113280.0,0.002]
[1754186037445,5.42497176,113290.0,113280.0,0.002]
[1754186037648,0.48789978,113290.0,113280.0,0.03002]
[1754186038049,0.48789978,113290.0,113280.0,0.02902]
[1754186038050,0.35289978,113290.0,113280.0,0.02902]
[1754186038250,0.35289978,113290.0,113280.0,0.03405]
[1754186038251,0.17537246,113290.0,113280.0,0.03405]
[1754186038495,0.48989978,113290.0,113280.0,0.03305]
[1754186038941,0.49089978,113290.0,113280.0,0.03305]
[1754186039443,0.48789978,113290.0,113280.0,0.03305]
[1754186039598,0.48889978,113290.0,113280.0,0.03305]
[1754186043532,0.35389978,113290.0,113280.0,0.03305]
[1754186043803,0.48889978,113290.0,113280.0,0.03305]
[1754186044263,0.48889978,113290.0,113280.0,0.031]
[1754186044469,0.47507932,113290.0,113280.0,0.02802]
[1754186044686,0.47507932,113290.0,113280.0,0.03109]
[1754186045139,0.162552,113290.0,113280.0,0.03109]
[1754186045358,0.47507932,113290.0,113280.0,0.03109]
[1754186048663,0.48889933,113290.0,113280.0,0.03109]
[1754186049986,0.16887058,113290.0,113280.0,0.03109]
[1754186051192,0.30423058,113290.0,113280.0,0.03109]
[1754186054353,0.29041057,113290.0,113280.0,0.03109]
[1754186055365,0.29041057,113290.0,113270.0,0.03031]
[1754186055653,0.31252732,113280.0,113270.0,0.073839]
[1754186055869,0.31252732,113280.0,113270.0,0.075929]
[1754186056549,0.31252732,113280.0,113270.0,0.0324]
[1754186057707,0.31252732,113280.0,113270.0,0.0334]
[1754186058152,0.31252732,113280.0,113270.0,0.0344]
[1754186058614,0.32634743,113280.0,113270.0,0.0344]
[1754186059474,0.32634743,113280.0,113270.0,0.02924]
[1754186060071,0.32634743,113280.0,113270.0,0.03231]
[1754186062444,0.63969475,113280.0,113270.0,0.002]
[1754186063160,0.63887475,113280.0,113270.0,0.002]
[1754186063624,0.32634743,113280.0,113270.0,0.002]
[1754186063853,0.63969475,113280.0,113270.0,0.002]
[1754186064075,0.66608342,113280.0,113270.0,0.002]
[1754186064555,0.63969475,113280.0,113270.0,0.002]
[1754186064778,0.63969475,113280.0,113270.0,0.001]
[1754186065023,0.63969475,113280.0,113260.0,0.03031]
[1754186065251,0.44780732,113270.0,113260.0,0.047474]